bitfinex-derivatives/quotes_SOLF0:USTF0_20250309
["timestamp","ask_amount","ask_price","bid_price","bid_amount"]
[1741478401854,3.65e-05,136.94,136.91,0.0545565]
[1741478405350,3.65e-05,136.94,136.92,26.14]
[1741478405750,3.65e-05,136.94,136.93,26.14]
[1741478406547,3.65e-05,136.94,136.91,0.0545565]
[1741478407155,3.65e-05,136.94,136.91,26.1945565]
[1741478408556,3.65e-05,136.94,136.91,0.0545565]
[1741478410259,3.65e-05,136.94,136.88,26.14]
[1741478411452,3.65e-05,136.94,136.9,0.05199138]
[1741478411651,26.1400365,136.94,136.85,26.14]
[1741478411853,26.14,136.94,136.85,26.14]
[1741478412657,0.0551437,136.91,136.88,0.04942848]
[1741478414364,26.1951437,136.91,136.83,26.14]
[1741478414564,3.9138,136.9,136.83,26.14]
[1741478415465,0.05400254,136.88,136.85,0.04979655]
[1741478416663,0.05400254,136.88,136.86,26.14]
[1741478416865,2.54e-06,136.88,136.86,26.14]
[1741478419366,2.54e-06,136.88,136.86,30.0602]
[1741478419569,2.54e-06,136.88,136.86,31.9711]
[1741478420866,2.54e-06,136.88,136.86,251.0511]
[1741478421074,2.54e-06,136.88,136.87,1.34194616]
[1741478421572,2.54e-06,136.88,136.87,3.66]
[1741478421772,2.54e-06,136.88,136.87,5.00194229]
[1741478423265,2.54e-06,136.88,136.87,1.34194229]
[1741478423464,2.54e-06,136.88,136.87,5.00194229]
[1741478425973,2.54e-06,136.88,136.87,1.34194229]
[1741478426168,2.54e-06,136.88,136.86,251.0511]
[1741478426373,2.54e-06,136.88,136.87,1.34184847]
[1741478428475,2.54e-06,136.88,136.87,1.34192121]
[1741478429275,2.54e-06,136.88,136.87,1.34184276]
[1741478430878,2.54e-06,136.88,136.86,251.0511]
[1741478431085,2.54e-06,136.88,136.87,1.34187561]
[1741478431385,2.54e-06,136.88,136.87,8.64937561]
[1741478438882,2.54e-06,136.88,136.87,33.4475]
[1741478439783,2.54e-06,136.88,136.87,7.3075]
[1741478439985,2.54e-06,136.88,136.87,33.4475]
[1741478440786,2.54e-06,136.88,136.87,7.3075]
[1741478448488,2.54e-06,136.88,136.85,0.04979655]
[1741478449394,2.54e-06,136.88,136.86,7.3078]
[1741478449693,2.54e-06,136.88,136.85,0.04979655]
[1741478450688,7.30690254,136.88,136.85,7.35799655]
[1741478451093,2.54e-06,136.88,136.85,0.04979655]
[1741478452495,2.54e-06,136.88,136.86,7.3077]
[1741478452896,2.54e-06,136.88,136.85,7.35799655]
[1741478453591,7.30730254,136.88,136.85,7.35799655]
[1741478453795,3.8125,136.87,136.85,0.04979655]
[1741478453997,3.8125,136.87,136.85,0.02099655]
[1741478454187,7.3087,136.85,136.8,26.16]
[1741478454393,7.3087,136.85,136.79,26.16]
[1741478454887,3.8125,136.87,136.79,26.16]
[1741478455095,7.3082,136.86,136.79,26.16]
[1741478455290,0.05497415,136.84,136.82,0.05349938]
[1741478456300,0.05497415,136.84,136.82,7.36349938]
[1741478456497,0.05497415,136.84,136.82,0.05349938]
[1741478458394,0.05497415,136.84,136.82,7.36359938]
[1741478459501,7.3096,136.83,136.82,0.05349938]
[1741478459893,10.9696,136.83,136.82,0.05349938]
[1741478461605,3.66,136.83,136.77,7.3126]
[1741478461804,2.03,136.82,136.77,7.3126]
[1741478462708,7.36452587,136.81,136.78,0.0554189]
[1741478464107,7.3112,136.8,136.78,0.0554189]
[1741478464308,0.05372587,136.81,136.78,0.0554189]
[1741478465213,0.05372587,136.81,136.79,7.3117]
[1741478465805,0.05372587,136.81,136.78,7.3675189]
[1741478466203,0.05372587,136.81,136.79,7.3117]
[1741478466403,1.98671904,136.82,136.78,0.0554189]
[1741478467607,0.04868038,136.81,136.78,26.2154189]
[1741478468006,0.04868038,136.81,136.8,7.3112]
[1741478470109,0.04868038,136.81,136.79,7.3116]
[1741478470706,7.35968038,136.81,136.78,26.2154189]
[1741478471211,0.04868038,136.81,136.78,26.2154189]
[1741478471411,0.04868038,136.81,136.78,33.5276189]
[1741478472409,0.04868038,136.81,136.78,26.2154189]
[1741478472711,0.04868038,136.81,136.78,0.0554189]
[1741478472909,0.04868038,136.81,136.78,7.3675189]
[1741478473110,0.04868038,136.81,136.78,0.0554189]
[1741478473806,7.35988038,136.81,136.78,0.0554189]
[1741478474009,0.04868038,136.81,136.78,0.0554189]
[1741478474411,0.04868038,136.81,136.79,7.3117]
[1741478475316,0.04868038,136.81,136.78,0.0554189]
[1741478475516,0.04868038,136.81,136.78,7.3675189]
[1741478476011,0.04868038,136.81,136.79,7.3116]
[1741478476212,0.04868038,136.81,136.78,0.0554189]
[1741478476916,0.04868038,136.81,136.8,7.3112]
[1741478479810,1.9373,136.89,136.8,26.16]
[1741478480014,26.16,136.88,136.83,7.3095]
[1741478480219,7.3078,136.87,136.83,7.3095]
[1741478480618,1.9373,136.89,136.83,26.16]
[1741478481015,0.0495932,136.87,136.86,7.3077]
[1741478481917,0.0495932,136.87,136.86,33.4677]
[1741478483324,0.0495932,136.87,136.86,26.16]
[1741478484026,0.0495932,136.87,136.86,33.468]
[1741478486629,0.0495932,136.87,136.86,26.16]
[1741478487533,0.0495932,136.87,136.86,33.468]
[1741478487932,3.861,136.93,136.86,26.16]
[1741478488132,7.3054,136.91,136.88,7.3069]
[1741478489134,7.35747156,136.91,136.88,7.35954723]
[1741478489326,0.05207156,136.91,136.88,7.35954723]
[1741478489530,0.05207156,136.91,136.9,7.3059]
[1741478489726,26.16,136.96,136.89,26.16]
[1741478490127,33.4628,136.96,136.93,7.3043]
[1741478490530,7.3034,136.95,136.91,7.305]
[1741478490731,0.05337093,136.94,136.91,7.305]
[1741478490932,0.05337093,136.94,136.92,0.04637386]
[1741478491538,0.05337093,136.94,136.92,7.35097386]
[1741478491734,0.05337093,136.94,136.92,0.04637386]
[1741478492835,0.05337093,136.94,136.92,7.35107386]
[1741478494337,0.05337093,136.94,136.92,0.04637386]
[1741478494534,7.35707093,136.94,136.92,0.04637386]
[1741478497238,0.05337093,136.94,136.92,0.04637386]
[1741478498933,7.3043,136.93,136.92,0.04637386]
[1741478500339,33.4443,136.93,136.92,0.04637386]
[1741478502241,26.14,136.93,136.92,0.04637386]
[1741478502834,33.4443,136.93,136.92,0.04637386]
[1741478504840,7.3043,136.93,136.92,0.04637386]
[1741478506042,7.3043,136.93,136.92,7.386e-05]
[1741478519147,10.9643,136.93,136.92,7.386e-05]
[1741478519344,14.9405,136.93,136.92,7.386e-05]
[1741478519536,15.0885,136.93,136.92,7.386e-05]
[1741478521839,63.8377082,136.93,136.92,7.386e-05]
[1741478524445,15.0885,136.93,136.92,7.386e-05]
[1741478525246,14.9405,136.93,136.92,7.386e-05]
[1741478529151,16.23178952,136.93,136.92,7.386e-05]
[1741478529652,7.3109,136.81,136.77,11.38]
[1741478530547,7.3112,136.8,136.77,11.38]
[1741478530750,7.3112,136.8,136.79,0.05199917]
[1741478532149,0.05007041,136.81,136.79,0.05199917]
[1741478532955,0.05007041,136.81,136.79,7.36369917]
[1741478533353,0.05007041,136.81,136.79,0.05199917]
[1741478534151,7.36087041,136.81,136.79,0.05199917]
[1741478534452,0.05007041,136.81,136.79,0.05199917]
[1741478534850,7.3112,136.8,136.79,0.05199917]
[1741478535159,0.05007041,136.81,136.79,0.05199917]
[1741478536254,7.3112,136.8,136.79,0.05199917]
[1741478541556,7.3112,136.8,136.79,9.917e-05]
[1741478542154,10.9712,136.8,136.79,9.917e-05]
[1741478542359,13.055,136.8,136.79,9.917e-05]
[1741478542654,15.1235,136.8,136.79,9.917e-05]
[1741478543160,11.4635,136.8,136.79,9.917e-05]
[1741478543361,15.1235,136.8,136.79,9.917e-05]
[1741478551166,7.3182,136.67,136.66,2.0689]
[1741478551361,26.16,136.78,136.66,28.2289]
[1741478551665,26.16,136.78,136.67,2.0492]
[1741478551862,7.3143,136.75,136.68,7.3173]
[1741478552056,26.16,136.74,136.68,2.0827]
[1741478552255,26.16,136.74,136.7,0.04705803]
[1741478552461,0.05419366,136.72,136.7,0.04705803]
[1741478553165,26.16,136.74,136.7,0.04705803]
[1741478553767,26.16,136.74,136.7,7.36345803]
[1741478554470,0.05498496,136.73,136.7,7.36345803]
[1741478554670,26.16,136.74,136.7,0.04705803]
[1741478555766,0.05449833,136.73,136.7,0.04705803]
[1741478555968,7.3158,136.72,136.7,0.04705803]
[1741478556168,0.05449833,136.73,136.7,0.04705803]
[1741478556366,7.3159,136.72,136.7,0.04705803]
[1741478557861,0.05449833,136.73,136.7,0.04705803]
[1741478558061,7.316,136.71,136.7,0.04705803]
[1741478559065,13.05933586,136.71,136.7,0.04705803]
[1741478559271,39.21933586,136.71,136.7,5.803e-05]
[1741478559470,43.92786589,136.71,136.7,5.803e-05]
[1741478559668,47.58786589,136.71,136.7,5.803e-05]
[1741478559973,53.4455125,136.71,136.7,5.803e-05]
[1741478560470,49.7895125,136.71,136.65,2.0171]
[1741478560675,19.9695125,136.7,136.65,2.0171]
[1741478560873,19.9695125,136.69,136.65,2.0171]
[1741478561073,41.42098247,136.68,136.65,2.0171]
[1741478561271,13.06183586,136.67,136.65,2.0171]
[1741478561472,21.89697619,136.66,136.65,2.0171]
[1741478561675,21.89697619,136.66,136.65,2.07025575]
[1741478561875,16.15364033,136.66,136.65,2.07025575]
[1741478562170,22.10046839,136.66,136.65,2.07025575]
[1741478562375,31.61751264,136.66,136.65,0.05315575]
[1741478562873,38.93621264,136.66,136.65,0.05315575]
[1741478563470,38.93621264,136.66,136.65,5.575e-05]
[1741478563772,43.64051957,136.66,136.65,5.575e-05]
[1741478564274,45.62038657,136.66,136.65,5.575e-05]
[1741478564671,38.30168657,136.66,136.55,2.0642]
[1741478564974,7.3208,136.63,136.55,2.0642]
[1741478565176,41.62387231,136.65,136.55,2.0642]
[1741478565177,26.16,136.65,136.55,2.0642]
[1741478565476,16.15364033,136.62,136.55,2.0642]
[1741478565977,0.04627935,136.6,136.57,0.05311791]
[1741478566275,16.15364033,136.62,136.58,26.18]
[1741478566475,3.06163859,136.61,136.59,11.2854]
[1741478566674,7.3203,136.63,136.59,11.2854]
[1741478567274,0.05196332,136.62,136.6,0.05630263]
[1741478567776,7.3214,136.61,136.6,0.05630263]
[1741478568375,0.05196332,136.62,136.6,0.05630263]
[1741478569178,7.3214,136.61,136.6,0.05630263]
[1741478570175,7.37296332,136.62,136.6,0.05630263]
[1741478571689,7.3214,136.61,136.6,0.05630263]
[1741478572684,17.13089198,136.61,136.6,0.05630263]
[1741478572888,23.07495511,136.61,136.6,0.05630263]
[1741478573287,15.75355511,136.61,136.6,0.05630263]
[1741478574587,27.42601867,136.61,136.6,0.05630263]
[1741478576292,34.74741867,136.61,136.6,0.05630263]
[1741478578294,34.7721979,136.61,136.6,0.05630263]
[1741478579494,40.90639472,136.61,136.6,0.05630263]
[1741478580897,50.46293372,136.61,136.6,0.05630263]
[1741478581690,50.46940435,136.61,136.6,0.05630263]
[1741478583202,55.44196074,136.61,136.6,0.05630263]
[1741478586100,55.44196074,136.61,136.6,2.63e-06]
[1741478586301,55.44196074,136.61,136.55,2.0642]
[1741478586302,7.3239,136.57,136.55,2.0642]
[1741478586506,19.19294616,136.56,136.55,2.0642]
[1741478587008,35.13663496,136.56,136.55,2.0642]
[1741478587601,7.3246,136.55,136.54,0.05183485]
[1741478587807,44.58474868,136.55,136.53,1.9708]
[1741478588104,49.36822512,136.54,136.53,1.9708]
[1741478588609,49.36780116,136.54,136.53,1.9708]
[1741478588906,49.36492647,136.54,136.53,1.9708]
[1741478589107,40.41270873,136.54,136.53,1.9708]
[1741478589407,44.09172739,136.54,136.53,1.9708]
[1741478589605,49.29011975,136.54,136.53,1.9708]
[1741478589800,44.09172739,136.54,136.53,1.9708]
[1741478590208,35.13663496,136.54,136.52,0.05153399]
[1741478590405,19.19294616,136.53,136.52,0.05153399]
[1741478591008,35.13663496,136.53,136.52,0.05153399]
[1741478591607,35.13663496,136.53,136.52,7.37773399]
[1741478591908,49.28718477,136.53,136.52,7.37773399]
[1741478592112,58.2422772,136.53,136.52,7.37773399]
[1741478593106,49.28718477,136.53,136.52,7.37773399]
[1741478593307,49.28718477,136.53,136.52,0.05153399]
[1741478593503,43.14800435,136.53,136.52,0.05153399]
[1741478593703,48.23915101,136.53,136.52,0.05153399]
[1741478593903,49.35844896,136.53,136.52,0.05153399]
[1741478595507,37.81846882,136.53,136.52,0.05153399]
[1741478597910,32.5946437,136.53,136.52,0.05153399]
[1741478598315,32.5946437,136.53,136.52,7.37773399]
[1741478599618,22.34790222,136.53,136.52,7.37773399]
[1741478599807,16.26520222,136.53,136.52,7.37773399]
[1741478600010,0.05001816,136.54,136.53,7.3257]
[1741478600211,0.05001816,136.54,136.53,18.99816356]
[1741478600616,0.05001816,136.54,136.53,7.3257]
[1741478601210,0.05001816,136.54,136.52,7.37753399]
[1741478601616,15.12530057,136.53,136.52,7.37753399]
[1741478602117,23.463636,136.53,136.52,7.37753399]
[1741478602314,26.39357484,136.53,136.52,7.37753399]
[1741478602516,27.12603005,136.53,136.52,7.37753399]
[1741478602917,27.75816859,136.53,136.51,37.87246356]
[1741478603216,27.75816859,136.52,136.5,1.9334]
[1741478603412,36.74048302,136.51,136.49,11.67246356]
[1741478603611,15.75744497,136.5,136.49,18.99996356]
[1741478605014,4.497e-05,136.5,136.49,22.65996356]
[1741478608013,4.497e-05,136.5,136.49,18.99996356]
[1741478608217,0.04714428,136.51,136.5,7.3273]
[1741478608417,0.04714428,136.51,136.49,11.67246356]
[1741478608418,20.58637224,136.51,136.48,0.04635978]
[1741478608612,8.60547627,136.5,136.48,0.04635978]
[1741478608811,9.05072779,136.51,136.5,7.3273]
[1741478609017,29.58960434,136.51,136.5,7.3273]
[1741478610411,39.9343346,136.51,136.5,7.3273]
[1741478610812,39.9343346,136.51,136.5,33.5273]
[1741478611009,30.93075109,136.51,136.5,33.5273]
[1741478611414,39.9343346,136.51,136.5,33.5273]
[1741478611611,39.9343346,136.51,136.5,26.2]
[1741478611819,30.93149403,136.51,136.49,7.3276]
[1741478612020,17.91756923,136.5,136.49,7.3276]
[1741478612315,17.91756923,136.5,136.49,19.00006356]
[1741478612516,6.045e-05,136.5,136.49,19.00006356]
[1741478612717,4.396e-05,136.5,136.49,19.00006356]
[1741478613019,5.48570841,136.5,136.49,19.00006356]
[1741478613815,0.04714428,136.51,136.49,11.67246356]
[1741478614019,0.04714428,136.51,136.5,33.5273]
[1741478615022,7.126e-05,136.51,136.5,33.5273]
[1741478615322,7.126e-05,136.51,136.5,48.85976356]
[1741478617126,7.126e-05,136.51,136.5,45.19976356]
[1741478617423,5.04746599,136.51,136.5,45.19976356]
[1741478617625,6.599e-05,136.51,136.5,48.85976356]
[1741478617923,0.05538106,136.52,136.51,7.3267]
[1741478619519,8.106e-05,136.52,136.51,7.3267]
[1741478619723,8.106e-05,136.52,136.51,10.9867]
[1741478621225,9.814e-05,136.54,136.53,7.3257]
[1741478621414,9.814e-05,136.54,136.53,45.19816356]
[1741478621616,4.85,136.55,136.53,37.87246356]
[1741478621821,1.6973,136.55,136.54,7.3251]
[1741478623327,1.6973,136.55,136.54,10.9851]
[1741478623525,0.05180157,136.56,136.54,3.66]
[1741478623825,7.21813842,136.61,136.55,11.67246356]
[1741478624025,8.04386781,136.6,136.58,11.67246356]
[1741478624221,8.04386781,136.59,136.58,11.67246356]
[1741478624929,24.01307237,136.59,136.58,18.99526356]
[1741478625627,15.96920456,136.59,136.58,18.99526356]
[1741478626223,22.08156566,136.59,136.58,18.99526356]
[1741478627031,12.30183054,136.59,136.58,18.99526356]
[1741478627322,1.25983054,136.59,136.58,18.99526356]
[1741478627530,2.029e-05,136.59,136.58,22.65526356]
[1741478627919,0.05150753,136.6,136.59,7.3224]
[1741478628126,0.05150753,136.6,136.59,33.5024]
[1741478628624,7.53e-06,136.6,136.59,33.5024]
[1741478629523,7.53e-06,136.61,136.6,7.3219]
[1741478629724,7.53e-06,136.61,136.6,18.99436356]
[1741478631325,14.45461284,136.61,136.6,18.99436356]
[1741478632331,14.45461284,136.61,136.6,11.67246356]
[1741478632632,19.65144265,136.61,136.6,37.85246356]
[1741478632829,28.65697984,136.61,136.6,37.85246356]
[1741478634534,28.65372265,136.61,136.6,37.85246356]
[1741478635330,28.65256836,136.61,136.6,37.85246356]
[1741478635931,28.65256836,136.61,136.6,45.17436356]
[1741478637235,23.46015003,136.61,136.6,45.17436356]
[1741478637532,33.7854288,136.61,136.6,45.17436356]
[1741478638838,33.78403001,136.61,136.6,45.17436356]
[1741478639232,24.77849282,136.61,136.6,45.17436356]
[1741478639528,31.23030887,136.61,136.6,45.17436356]
[1741478639729,37.85178403,136.61,136.6,45.17436356]
[1741478640133,13.07329121,136.61,136.6,45.17436356]
[1741478640329,9.121e-05,136.61,136.6,45.17436356]
[1741478643632,0.05014852,136.62,136.6,45.17436356]
[1741478643633,3.973e-05,136.62,136.61,7.3214]
[1741478644040,8.97740172,136.69,136.61,3.9265]
[1741478644241,13.48803794,136.68,136.67,18.99016356]
[1741478644436,13.48803794,136.68,136.67,45.17016356]
[1741478644637,5.1877069,136.68,136.67,45.17016356]
[1741478645642,9.03128185,136.69,136.68,7.3176]
[1741478645842,0.05380792,136.69,136.67,37.85246356]
[1741478646042,0.05380792,136.69,136.67,26.18]
[1741478646239,5.18329081,136.68,136.67,26.18]
[1741478646437,5.18329081,136.68,136.67,23.0303]
[1741478650140,15.13420399,136.68,136.67,23.0303]
[1741478650641,15.13459393,136.68,136.67,23.0303]
[1741478650847,25.28357853,136.68,136.67,23.0303]
[1741478652250,15.32724946,136.68,136.67,23.0303]
[1741478652443,31.50285699,136.68,136.67,23.0303]
[1741478653348,31.50285699,136.68,136.66,0.04982159]
[1741478653547,21.35276556,136.67,136.66,0.04982159]
[1741478654047,28.67096556,136.67,136.66,0.04982159]
[1741478654246,38.81995016,136.67,136.66,0.04982159]
[1741478654449,38.82507988,136.67,136.66,0.04982159]
[1741478655048,31.50687988,136.67,136.66,0.04982159]
[1741478655953,37.85486619,136.67,136.66,0.04982159]
[1741478656950,37.85486619,136.67,136.66,7.36852159]
[1741478658449,37.88826786,136.67,136.66,7.36852159]
[1741478659551,8.97747393,136.68,136.67,7.3182]
[1741478659751,18.95619268,136.68,136.67,45.15066356]
[1741478660249,0.05380792,136.69,136.68,7.3176]
[1741478660450,5.24693476,136.69,136.68,7.3176]
[1741478660655,14.99930097,136.69,136.68,7.3176]
[1741478662654,15.00298879,136.69,136.68,7.3176]
[1741478663453,23.32154804,136.69,136.68,7.3176]
[1741478663653,23.32154804,136.69,136.67,37.83246356]
[1741478663955,23.26658281,136.68,136.67,37.83246356]
[1741478664552,0.05380792,136.69,136.67,37.83246356]
[1741478664752,26.22069078,136.68,136.66,0.04982159]
[1741478665056,26.21835193,136.67,136.63,231.19246356]
[1741478665352,35.22164702,136.66,136.63,231.19246356]
[1741478665555,23.29030772,136.65,136.63,231.19246356]
[1741478665752,23.29030772,136.64,136.63,231.19246356]
[1741478665953,14.96865667,136.64,136.63,238.51276356]
[1741478666354,14.96865667,136.64,136.63,264.67276356]
[1741478666756,14.97410893,136.64,136.63,264.67276356]
[1741478667857,2.477e-05,136.64,136.63,264.67276356]
[1741478668056,0.05327435,136.65,136.63,257.35246356]
[1741478668258,0.05327435,136.65,136.64,7.3198]
[1741478668561,2.0746,136.7,136.63,257.35246356]
[1741478668750,8.33848514,136.69,136.67,18.99026356]
[1741478668950,8.33848514,136.68,136.67,45.15026356]
[1741478669657,0.05101005,136.69,136.68,7.3176]
[1741478669854,7.20802427,136.73,136.68,11.67246356]
[1741478670054,9.26802427,136.74,136.71,11.67246356]
[1741478670261,7.20802427,136.73,136.71,11.67246356]
[1741478670557,9.98456696,136.73,136.71,5.82123992]
[1741478670954,6.696e-05,136.72,136.71,5.87409017]
[1741478671553,6.696e-05,136.72,136.71,13.19009017]
[1741478671868,5.94711065,136.72,136.71,5.87409017]
[1741478672062,5.94711065,136.72,136.71,13.19009017]
[1741478672563,32.12156332,136.79,136.71,5.87409017]
[1741478672865,5.7145665,136.78,136.75,11.67246356]
[1741478673059,1.9376,136.79,136.75,11.67246356]
[1741478673060,5.7145665,136.77,136.75,26.16]
[1741478673259,5.7145665,136.76,136.75,44.34160689]
[1741478675361,5.7145665,136.76,136.75,51.65550689]
[1741478675860,5.7145665,136.76,136.75,44.34160689]
[1741478676257,1.9376,136.79,136.75,44.34160689]
[1741478677466,1.9376,136.79,136.75,51.65550689]
[1741478677865,9.61676781,136.78,136.75,44.34160689]
[1741478678065,9.61675852,136.77,136.75,44.34160689]
[1741478678263,7.3123,136.78,136.75,44.34160689]
[1741478678462,9.61390409,136.77,136.75,44.34160689]
[1741478678766,9.61390409,136.76,136.75,44.34160689]
[1741478680254,9.61390409,136.76,136.75,26.16]
[1741478680567,9.60581487,136.76,136.75,26.14]
[1741478681573,9.2495,136.79,136.75,26.14]
[1741478681866,22.42439263,136.78,136.75,26.14]
[1741478682066,14.42734729,136.77,136.75,26.14]
[1741478682262,9.60803264,136.76,136.75,33.4535]
[1741478682458,1.9376,136.79,136.75,33.4535]
[1741478682662,22.6015234,136.78,136.75,33.4535]
[1741478682863,14.60446223,136.77,136.75,33.4535]
[1741478683070,1.9376,136.79,136.75,33.4535]
[1741478683262,22.60149732,136.78,136.75,33.4535]
[1741478683462,14.60444479,136.77,136.75,33.4535]
[1741478683658,9.2493,136.79,136.75,33.4535]
[1741478683863,22.60794002,136.78,136.75,33.4535]
[1741478684169,14.60860793,136.77,136.76,7.3133]
[1741478684366,14.60860793,136.77,136.75,26.14]
[1741478684562,1.9376,136.79,136.75,44.32160689]
[1741478684764,29.92541415,136.78,136.75,26.14]
[1741478685066,14.61194985,136.77,136.75,26.14]
[1741478685264,23.32646693,136.78,136.75,26.14]
[1741478685265,9.61122216,136.76,136.75,26.14]
[1741478685461,9.61122216,136.76,136.74,0.04879837]
[1741478685663,14.61031053,136.75,136.74,0.04879837]
[1741478686069,20.7696055,136.75,136.74,0.04879837]
[1741478686370,30.62447746,136.75,136.74,0.04879837]
[1741478686767,47.6121335,136.75,136.74,0.04879837]
[1741478686970,30.62447746,136.75,136.74,0.04879837]
[1741478687266,31.05942898,136.75,136.74,0.04879837]
[1741478687961,31.05942898,136.75,136.74,7.36319837]
[1741478688166,37.33915777,136.75,136.74,7.36319837]
[1741478693171,21.01507509,136.75,136.74,7.36319837]
[1741478693373,37.34142352,136.75,136.74,7.36319837]
[1741478695377,32.34134892,136.75,136.74,19.00082069]
[1741478698275,10.04749661,136.75,136.74,19.00082069]
[1741478698471,2.0685,136.8,136.78,7.3119]
[1741478698771,13.00999089,136.79,136.78,19.00459478]
[1741478699376,13.00999089,136.79,136.78,11.69269478]
[1741478701379,5.00384265,136.79,136.78,11.69269478]
[1741478701776,2.0553,136.83,136.81,7.3102]
[1741478701973,8.00961467,136.82,136.81,26.14]
[1741478702375,2.0553,136.83,136.81,33.4503]
[1741478702575,18.94582232,136.86,136.81,33.4503]
[1741478702576,11.63762232,136.86,136.81,26.14]
[1741478702777,7.88355116,136.85,136.81,26.14]
[1741478702981,7.88355116,136.84,136.82,7.36208371]
[1741478703182,18.4723177,136.87,136.83,11.63762232]
[1741478703375,8.04685828,136.86,136.83,11.63762232]
[1741478703577,8.04685828,136.85,136.83,11.63762232]
[1741478703773,8.04685828,136.84,136.83,11.63762232]
[1741478704382,8.04685828,136.84,136.83,18.94722232]
[1741478704881,8.04685828,136.84,136.83,11.63762232]
[1741478706183,8.04685828,136.84,136.82,0.05228371]
[1741478706484,8.0401834,136.83,136.82,0.05228371]
[1741478708386,17.86904481,136.83,136.82,0.05228371]
[1741478708876,9.82886141,136.83,136.82,0.05228371]
[1741478709077,28.02866178,136.83,136.82,0.05228371]
[1741478709275,28.02866178,136.83,136.81,11.63762232]
[1741478709481,17.86838026,136.82,136.81,11.63762232]
[1741478709786,37.01705511,136.82,136.81,11.63762232]
[1741478710585,40.53005328,136.82,136.81,11.63762232]
[1741478711288,47.84015328,136.82,136.8,26.18799842]
[1741478711479,47.84015328,136.82,136.8,0.04799842]
[1741478711480,24.01579738,136.81,136.8,0.04799842]
[1741478711983,24.01579738,136.81,136.79,11.63762232]
[1741478712287,24.01579738,136.8,136.79,11.63762232]
[1741478712883,40.53005328,136.8,136.79,11.63762232]
[1741478713683,45.6838585,136.8,136.79,11.63762232]
[1741478713884,45.6838585,136.8,136.79,18.94932232]
[1741478714086,54.6909048,136.8,136.79,18.94932232]
[1741478714385,63.69797774,136.8,136.79,18.94932232]
[1741478714884,14.16087816,136.8,136.79,18.94932232]
[1741478715087,0.04809462,136.83,136.82,7.3101]
[1741478715289,8.15635903,136.83,136.82,33.4501]
[1741478715686,19.09167695,136.84,136.83,7.3096]
[1741478715889,9.13530746,136.89,136.83,11.63762232]
[1741478716188,7.9813894,136.88,136.87,11.63762232]
[1741478717089,7.73815057,136.88,136.87,11.63762232]
[1741478718190,1.97256781,136.89,136.87,11.63762232]
[1741478718990,0.04706781,136.89,136.87,11.63762232]
[1741478720292,0.04706781,136.89,136.88,7.3069]
[1741478721294,0.04706781,136.89,136.88,25.45410483]
[1741478723996,2.0721,136.95,136.91,7.305]
[1741478724195,2.0721,136.95,136.91,33.425]
[1741478725095,2.0721,136.95,136.92,0.04665189]
[1741478725691,2.01,136.96,136.92,18.19385672]
[1741478725898,2.0062,136.99,136.94,18.14720483]
[1741478726196,7.7061877,136.98,136.95,26.12]
[1741478726396,9.3077,136.99,136.95,26.16966045]
[1741478726696,7.70101375,136.98,136.95,26.16966045]
[1741478726994,4.81303354,136.97,136.95,26.16966045]
[1741478727194,9.3077,136.99,136.95,26.16966045]
[1741478727395,4.81055648,136.98,136.95,26.16966045]
[1741478727592,9.3077,136.99,136.95,0.04966045]
[1741478727795,12.50263513,136.98,136.95,0.04966045]
[1741478727990,4.80932753,136.97,136.95,0.04966045]
[1741478728187,2.0062,136.99,136.95,0.04966045]
[1741478728393,7.3026,136.97,136.95,0.04966045]
[1741478728795,2.0062,136.99,136.92,26.12]
[1741478729093,0.05419536,136.97,136.92,26.12]
[1741478729293,7.35669536,136.97,136.92,26.12]
[1741478729491,7.35669536,136.97,136.92,33.4244]
[1741478729693,7.35669536,136.97,136.92,51.57160483]
[1741478729993,0.05419536,136.97,136.94,7.3033]
[1741478730192,0.05419536,136.97,136.95,26.12]
[1741478730391,7.3027,136.96,136.93,0.0510758]
[1741478730592,0.05419536,136.97,136.93,0.0510758]
[1741478730797,4.80031548,136.96,136.93,0.0510758]
[1741478730991,0.05419536,136.97,136.93,0.0510758]
[1741478731191,7.3032,136.95,136.93,0.0510758]
[1741478731597,7.3037,136.94,136.9,25.45290483]
[1741478731799,2.0111,136.96,136.9,26.1]
[1741478731997,10.47241256,136.95,136.9,26.1]
[1741478732197,12.97609951,136.94,136.9,33.4056]
[1741478732395,7.3041,136.94,136.9,33.4056]
[1741478732795,0.04676892,136.93,136.91,0.05591181]
[1741478734000,0.04676892,136.93,136.92,7.3048]
[1741478734498,0.04676892,136.93,136.91,0.05591181]
[1741478734701,0.04676892,136.93,136.91,7.36121181]
[1741478736601,0.04676892,136.93,136.92,7.3048]
[1741478738603,0.04676892,136.93,136.91,7.36111181]
[1741478739103,0.04676892,136.93,136.91,0.05591181]
[1741478739303,0.04676892,136.93,136.92,7.3048]